bitfinex-derivatives/quotes_SOLF0:USTF0_20250331
["timestamp","ask_amount","ask_price","bid_price","bid_amount"]
[1743446229792,7.9544,125.73,125.71,29.69160222]
[1743446230797,8.00858526,125.74,125.71,29.69160222]
[1743446231089,0.05478526,125.74,125.71,29.69160222]
[1743446231295,0.05478526,125.74,125.72,7.9545]
[1743446231494,0.05478526,125.74,125.71,29.69160222]
[1743446232187,7.9548,125.72,125.71,29.69160222]
[1743446233192,7.9548,125.72,125.71,0.05160222]
[1743446239801,7.9545,125.73,125.71,0.05160222]
[1743446240000,0.05478526,125.74,125.71,0.05160222]
[1743446240200,0.05478526,125.74,125.71,29.69160222]
[1743446241201,8.00858526,125.74,125.71,37.64660222]
[1743446241398,0.05478526,125.74,125.71,37.64660222]
[1743446241598,0.05478526,125.74,125.71,29.69160222]
[1743446242394,8.00868526,125.74,125.71,37.64660222]
[1743446242697,0.05478526,125.74,125.71,29.69160222]
[1743446243393,0.05478526,125.74,125.73,7.9541]
[1743446243800,0.05478526,125.74,125.71,29.69160222]
[1743446244000,8.00858526,125.74,125.72,7.9544]
[1743446244600,7.9541,125.73,125.71,29.69160222]
[1743446245897,7.9541,125.73,125.71,37.64660222]
[1743446246702,7.9541,125.73,125.71,29.69160222]
[1743446247303,7.9541,125.73,125.71,37.64700222]
[1743446247494,7.9548,125.72,125.71,29.69160222]
[1743446248302,7.9548,125.72,125.71,0.05160222]
[1743446248798,0.05478526,125.74,125.71,0.05160222]
[1743446249401,0.05478526,125.74,125.72,7.9545]
[1743446249605,0.05478526,125.74,125.72,37.5945]
[1743446250105,0.05478526,125.74,125.73,7.9541]
[1743446250509,8.00828526,125.74,125.72,29.64]
[1743446251411,8.00828526,125.74,125.72,37.5945]
[1743446252210,0.05478526,125.74,125.71,0.05160222]
[1743446252604,8.00858526,125.74,125.71,8.00670222]
[1743446253410,8.00858526,125.74,125.71,0.05160222]
[1743446253411,0.05478526,125.74,125.71,0.05160222]
[1743446253811,8.00868526,125.74,125.71,8.00660222]
[1743446254606,0.05478526,125.74,125.71,0.05160222]
[1743446255112,7.9548,125.72,125.71,0.05160222]
[1743446263212,29.62,125.72,125.65,318.75018803]
[1743446263512,7.9565,125.7,125.65,318.75018803]
[1743446263913,25.76304303,125.73,125.65,318.75018803]
[1743446264110,7.957,125.69,125.66,7.9583]
[1743446264316,0.05032966,125.7,125.68,0.05044017]
[1743446264811,0.05032966,125.7,125.68,8.00764017]
[1743446266014,0.05032966,125.7,125.69,7.9567]
[1743446266209,0.05032966,125.7,125.68,0.05044017]
[1743446266412,0.05032966,125.7,125.68,8.00744017]
[1743446267107,0.05032966,125.7,125.69,7.9567]
[1743446267712,26.03154303,125.77,125.73,7.9538]
[1743446267918,26.03154303,125.77,125.71,29.62]
[1743446268420,26.03154303,125.77,125.73,7.9538]
[1743446268617,26.03154303,125.77,125.71,29.62]
[1743446269019,0.05841486,125.75,125.73,0.05731378]
[1743446269922,8.01131486,125.75,125.73,0.05731378]
[1743446270320,0.05841486,125.75,125.73,0.05731378]
[1743446271725,8.01141486,125.75,125.73,0.05731378]
[1743446273124,7.9535,125.74,125.73,0.05731378]
[1743446273620,0.05841486,125.75,125.73,0.05731378]
[1743446274021,21.74444303,125.82,125.74,51.36444303]
[1743446274321,12.93106177,125.86,125.81,21.74444303]
[1743446274521,7.947,125.85,125.82,29.62]
[1743446274718,33.13300628,125.89,125.82,29.62]
[1743446274917,54.87744931,125.89,125.82,29.62]
[1743446275114,33.13300628,125.89,125.82,29.62]
[1743446275318,33.13300628,125.89,125.84,0.05185372]
[1743446275517,33.13300628,125.89,125.85,29.62]
[1743446275723,41.07740628,125.89,125.85,29.62]
[1743446276223,33.13300628,125.89,125.85,37.5665]
[1743446276724,33.13300628,125.89,125.85,29.62]
[1743446277024,33.13300628,125.89,125.84,0.05185372]
[1743446277323,320.24284149,125.97,125.84,0.05185372]
[1743446277523,26.16674303,125.93,125.83,51.36444303]
[1743446277722,26.16674303,125.93,125.89,0.05114203]
[1743446278719,7.9438,125.9,125.89,0.05114203]
[1743446279823,7.943,125.91,125.89,0.05114203]
[1743446280828,26.16674303,125.93,125.89,0.05114203]
[1743446280829,7.9434,125.9,125.89,0.05114203]
[1743446281029,26.16674303,125.93,125.89,0.05114203]
[1743446281423,7.9434,125.9,125.89,0.05114203]
[1743446281723,26.16674303,125.93,125.89,0.05114203]
[1743446281926,7.9434,125.9,125.89,0.05114203]
[1743446282533,7.9431,125.91,125.89,0.05114203]
[1743446283131,4.4223,125.93,125.89,0.05114203]
[1743446283434,21.74444303,125.95,125.89,0.05114203]
[1743446283728,7.9425,125.92,125.9,29.6]
[1743446284123,21.74444303,125.93,125.89,0.05114203]
[1743446284330,7.9434,125.9,125.89,0.05114203]
[1743446285723,51.40286806,125.91,125.83,4.1987]
[1743446285930,21.74444303,125.89,125.83,29.6]
[1743446286126,21.74444303,125.89,125.82,302.6422]
[1743446286337,21.74444303,125.89,125.82,332.2422]
[1743446286732,0.06000168,125.87,125.84,0.06113457]
[1743446287432,7.9464,125.86,125.84,0.06113457]
[1743446288631,0.06000168,125.87,125.84,0.06113457]
[1743446290529,7.9459,125.86,125.84,0.06113457]
[1743446291125,8.00560168,125.87,125.84,0.06113457]
[1743446291335,8.00560168,125.87,125.84,8.00823457]
[1743446291633,0.06000168,125.87,125.84,0.06113457]
[1743446292529,290.62284149,126.02,125.86,21.74444303]
[1743446292831,21.74444303,125.97,125.88,21.74444303]
[1743446293031,21.74444303,125.97,125.89,29.58]
[1743446293232,21.74444303,125.97,125.89,37.7722]
[1743446293432,21.74444303,125.97,125.89,45.7159]
[1743446293729,21.74444303,125.97,125.92,0.05611759]
[1743446294030,51.32444303,125.97,125.92,0.05611759]
[1743446294229,21.74444303,125.97,125.92,0.05611759]
[1743446295130,29.68354303,125.97,125.92,0.05611759]
[1743446295629,7.9397,125.96,125.92,0.05611759]
[1743446295832,72.50643421,125.99,125.92,0.05611759]
[1743446296325,34.65863421,125.96,125.92,0.05611759]
[1743446296528,64.23863421,125.96,125.92,0.05611759]
[1743446296827,7.9412,125.94,125.92,0.05611759]
[1743446297530,7.9415,125.93,125.92,0.05611759]
[1743446297733,320.56284149,126.06,125.92,323.83611759]
[1743446297933,7.9369,126.01,125.92,315.84]
[1743446298136,29.98,126.01,125.98,0.05211742]
[1743446298433,7.9371,126.0,125.98,0.05559526]
[1743446299036,37.8968,126.01,125.98,0.05559526]
[1743446299334,320.58284149,126.06,125.98,0.05559526]
[1743446299636,320.58284149,126.06,125.95,29.96]
[1743446299637,7.9368,126.01,125.95,37.8997]
[1743446299833,7.9368,126.01,125.97,0.05030016]
[1743446300531,34.3234,126.03,125.97,0.05030016]
[1743446301025,34.65863421,126.01,125.97,0.05030016]
[1743446301234,29.96,126.0,125.92,285.9]
[1743446301430,4.1144,125.99,125.92,285.9]
[1743446301635,7.9385,125.98,125.92,285.9]
[1743446301835,29.96,125.97,125.92,285.9]
[1743446302232,34.0544,125.99,125.92,285.9]
[1743446302433,0.0508186,125.96,125.93,0.0547061]
[1743446312645,0.0508186,125.96,125.93,7.9961061]
[1743446314343,0.0508186,125.96,125.93,0.0547061]
[1743446314544,7.9905186,125.96,125.93,0.0547061]
[1743446315251,7.9406,125.95,125.93,0.0547061]
[1743446315440,0.0508186,125.96,125.93,0.0547061]
[1743446317347,7.9905186,125.96,125.93,0.0547061]
[1743446317549,0.0508186,125.96,125.93,0.0547061]
[1743446317746,7.9408,125.95,125.93,0.0547061]
[1743446318147,0.0508186,125.96,125.93,0.0547061]
[1743446318444,7.9403,125.95,125.93,0.0547061]
[1743446319541,7.9409,125.94,125.93,0.0547061]
[1743446326458,29.60088056,125.94,125.87,31.96312344]
[1743446326766,21.66088056,125.89,125.87,0.00102344]
[1743446326954,30.08,125.88,125.81,319.63123449]
[1743446327150,30.08,125.88,125.87,127.85249379]
[1743446327950,38.0247,125.88,125.87,127.85249379]
[1743446329161,38.0247,125.88,125.87,121.84599379]
[1743446329362,38.0247,125.88,125.87,103.68859379]
[1743446329859,7.9453,125.87,125.86,213.1487508]
[1743446330661,42.64703122,125.87,125.86,213.1487508]
[1743446330863,34.70173122,125.87,125.8,12.4656]
[1743446331361,7.9469,125.85,125.8,12.4656]
[1743446331564,34.70173122,125.87,125.8,12.4656]
[1743446331864,0.0571389,125.85,125.82,0.05367178]
[1743446332951,8.0041389,125.85,125.82,0.05367178]
[1743446333957,7.9474,125.84,125.82,0.05367178]
[1743446334560,42.70567012,125.85,125.82,0.05367178]
[1743446335464,0.0571389,125.85,125.82,0.05367178]
[1743446335963,0.0571389,125.85,125.82,8.00207178]
[1743446336260,0.0571389,125.85,125.82,0.05367178]
[1743446337258,8.0039389,125.85,125.82,0.05367178]
[1743446337564,0.0571389,125.85,125.82,0.05367178]
[1743446338158,8.0039389,125.85,125.82,0.05367178]
[1743446338359,0.0571389,125.85,125.82,0.05367178]
[1743446338563,7.9472,125.84,125.82,0.05367178]
[1743446338759,29.9371389,125.85,125.82,0.05367178]
[1743446339263,7.9477,125.84,125.82,0.05367178]
[1743446340469,7.9478,125.83,125.77,29.86]
[1743446340664,64.58173122,125.85,125.77,29.86]
[1743446341065,7.9488,125.82,125.78,7.9507]
[1743446341262,64.58173122,125.85,125.76,29.86]
[1743446341663,0.0594148,125.82,125.81,7.9491]
[1743446342867,0.0594148,125.82,125.8,12.10279231]
[1743446343065,0.0594148,125.82,125.8,0.06009231]
[1743446343264,8.0081148,125.82,125.8,0.06009231]
[1743446343466,0.0594148,125.82,125.8,8.00979231]
[1743446343663,0.0594148,125.82,125.8,0.06009231]
[1743446343969,8.0079148,125.82,125.8,0.06009231]
[1743446345069,0.0594148,125.82,125.8,0.06009231]
[1743446345265,0.0594148,125.82,125.81,7.9491]
[1743446345466,0.0594148,125.82,125.8,0.06009231]
[1743446345671,7.9491,125.81,125.8,0.06009231]
[1743446346172,0.0594148,125.82,125.8,0.06009231]
[1743446347565,7.9491,125.81,125.8,0.06009231]
[1743446347972,0.0594148,125.82,125.8,0.06009231]
[1743446348368,0.0594148,125.82,125.8,8.00929231]
[1743446348569,0.0594148,125.82,125.81,29.74]
[1743446349077,0.0594148,125.82,125.81,38.1621]
[1743446349670,0.0594148,125.82,125.81,46.1112]
[1743446350070,0.0594148,125.82,125.81,7.9491]
[1743446350276,0.0594148,125.82,125.8,37.72959231]
[1743446350475,0.0594148,125.82,125.8,29.78009231]
[1743446350777,0.0594148,125.82,125.81,7.9491]
[1743446351578,0.0594148,125.82,125.8,37.72939231]
[1743446352276,0.0594148,125.82,125.81,7.9491]
[1743446353176,0.0594148,125.82,125.8,37.72979231]
[1743446353984,0.0594148,125.82,125.81,7.9491]
[1743446354277,0.0594148,125.82,125.8,29.78009231]
[1743446354479,0.0594148,125.82,125.8,37.72949231]
[1743446354876,8.0079148,125.82,125.8,37.72949231]
[1743446355075,21.76510331,125.82,125.8,0.06009231]
[1743446355477,7.9491,125.81,125.8,0.06009231]
[1743446357180,29.71390331,125.82,125.8,0.06009231]
[1743446357576,21.76510331,125.82,125.8,0.06009231]
[1743446357780,29.71360331,125.82,125.8,0.06009231]
[1743446358181,21.76510331,125.82,125.8,0.06009231]
[1743446358978,0.0594148,125.82,125.8,0.06009231]
[1743446359180,0.0594148,125.82,125.8,8.00959231]
[1743446359375,0.0594148,125.82,125.8,0.06009231]
[1743446359780,0.0594148,125.82,125.8,8.00959231]
[1743446360388,0.0594148,125.82,125.81,7.9491]
[1743446361585,0.0594148,125.82,125.8,8.00949231]
[1743446361786,0.0594148,125.82,125.8,0.06009231]
[1743446362386,0.0594148,125.82,125.81,7.9491]
[1743446363686,21.70568851,125.86,125.85,7.9466]
[1743446363883,66.52671046,125.87,125.85,7.9466]
[1743446364285,66.52671046,125.87,125.82,29.72]
[1743446364485,66.52671046,125.87,125.85,7.9462]
[1743446364683,21.70568851,125.88,125.85,7.9462]
[1743446364884,0.05680791,125.87,125.85,8.00619331]
[1743446365891,0.05680791,125.87,125.86,7.9459]
[1743446366690,0.05680791,125.87,125.85,8.00609331]
[1743446366893,0.05680791,125.87,125.85,0.05999331]
[1743446367297,0.05680791,125.87,125.86,7.9459]
[1743446370693,21.70568851,125.9,125.86,4.223]
[1743446371195,21.70568851,125.9,125.88,7.9443]
[1743446371588,29.64918851,125.9,125.88,8.00411123]
[1743446371793,29.70609704,125.9,125.88,8.00411123]
[1743446372198,29.70609704,125.9,125.88,0.05981123]
[1743446372495,21.76259704,125.9,125.88,0.05981123]
[1743446372891,29.70649704,125.9,125.88,0.05981123]
[1743446373991,7.944,125.89,125.88,0.05981123]
[1743446378691,29.70629704,125.9,125.88,0.05981123]
[1743446379403,7.944,125.89,125.88,0.05981123]
[1743446381608,51.36259704,125.9,125.83,4.0758]
[1743446381903,7.9447,125.88,125.83,4.0758]
[1743446382605,7.99598449,125.87,125.85,7.9462]
[1743446382801,7.99598449,125.87,125.84,0.05315486]
[1743446383101,7.9463,125.86,125.84,0.05315486]
[1743446386309,0.05058449,125.87,125.84,0.05315486]
[1743446387807,7.9466,125.85,125.84,0.05315486]
[1743446389706,21.8301895,125.85,125.84,0.05315486]
[1743446390107,13.8835895,125.85,125.8,29.6]
[1743446390407,13.8835895,125.82,125.79,29.6]
[1743446390606,21.8330895,125.81,125.79,29.6]
[1743446391011,13.8835895,125.81,125.79,37.5502]
[1743446391212,0.0609669,125.81,125.79,37.60254249]
[1743446391414,0.0609669,125.81,125.79,29.65234249]
[1743446391611,0.0609669,125.81,125.79,37.60254249]
[1743446391806,8.0100669,125.81,125.79,37.60254249]
[1743446392010,8.0100669,125.81,125.79,29.65234249]
[1743446392616,0.0609669,125.81,125.79,29.65234249]
[1743446392817,13.8835895,125.83,125.79,29.65234249]
[1743446393119,21.8311895,125.84,125.8,4.3841]
[1743446393309,13.8835895,125.85,125.8,18.2676895]
[1743446393715,7.9463,125.86,125.81,4.0301]
[1743446394016,0.05665551,125.84,125.83,7.9474]
[1743446398519,29.63874919,125.87,125.84,7.9468]
[1743446399020,21.69304919,125.91,125.82,51.29304919]
[1743446399217,73.68906009,125.92,125.84,21.69304919]
[1743446399409,95.38210928,125.92,125.85,4.0526]
[1743446399610,8.00264689,125.89,125.87,0.0512901]
[1743446402117,7.9447,125.88,125.87,0.0512901]
[1743446402323,21.69304919,125.88,125.82,29.6]
[1743446402527,21.69304919,125.88,125.82,33.9995]
[1743446402718,7.9456,125.87,125.84,7.947]
[1743446402916,21.69304919,125.88,125.82,33.9995]
[1743446403224,7.9462,125.86,125.83,7.9474]
[1743446403416,8.00498632,125.86,125.83,7.9982175]
[1743446403819,7.947,125.85,125.83,0.0508175]
[1743446404328,0.05878632,125.86,125.83,0.0508175]
[1743446404626,21.75183551,125.86,125.83,0.0508175]
[1743446404826,7.9472,125.84,125.83,0.0508175]
[1743446406525,7.9467,125.85,125.83,0.0508175]
[1743446406923,0.05878632,125.86,125.83,0.0508175]
[1743446408126,7.947,125.85,125.83,0.0508175]
[1743446408325,21.75183551,125.86,125.83,0.0508175]
[1743446408525,51.33183551,125.86,125.83,0.0508175]
[1743446409524,0.05878632,125.86,125.83,0.0508175]
[1743446409923,8.00508632,125.86,125.83,7.9986175]
[1743446410221,0.05878632,125.86,125.83,7.9986175]
[1743446410423,0.05878632,125.86,125.84,7.9469]
[1743446410625,218.64577798,125.93,125.85,307.63304919]
[1743446410830,208.70089534,125.94,125.91,21.69304919]
[1743446411124,147.84089534,125.94,125.93,29.63454919]
[1743446411324,127.46689534,125.94,125.93,59.71454919]
[1743446411626,127.46689534,125.94,125.93,67.65454919]
[1743446411826,62.57097797,125.94,125.93,67.65454919]
[1743446412031,2.57867797,125.94,125.93,67.65454919]
[1743446412325,23.19844919,126.05,125.93,59.71304919]
[1743446412525,0.2326,126.04,125.96,21.69304919]
[1743446412724,8.1675,126.04,125.97,30.06]
[1743446413122,4.5668,126.04,125.97,30.06]
[1743446413320,0.03360929,126.02,125.99,0.05960536]
[1743446413826,0.03360929,126.02,126.0,31.95664265]
[1743446415625,0.03360929,126.02,125.99,0.05960536]
[1743446415828,7.96980929,126.02,125.99,0.05960536]
[1743446416328,0.03360929,126.02,125.99,0.05960536]
[1743446416720,0.03360929,126.02,125.99,8.22508295]
[1743446417627,0.03360929,126.02,126.0,29.92]
[1743446419123,7.96980929,126.02,126.0,29.92]
[1743446420229,0.03360929,126.02,126.0,29.92]
[1743446421028,7.96970929,126.02,126.0,29.92]
[1743446422030,7.9365,126.01,126.0,29.92]
[1743446422624,7.9371,126.0,125.99,0.05960536]
[1743446422827,21.69304919,126.0,125.97,31.95664265]
[1743446423232,7.9384,125.98,125.97,127.82657062]
[1743446423429,21.69304919,126.0,125.97,127.82657062]
[1743446424135,21.69304919,126.0,125.97,91.98663105]
[1743446424531,21.74809886,126.0,125.97,92.04667766]
[1743446424732,7.9384,125.98,125.97,85.42897766]
[1743446425636,7.9384,125.98,125.97,0.06004661]
[1743446425837,21.69304919,125.98,125.97,0.06004661]
[1743446426137,21.69304919,125.98,125.96,18.4470934]
[1743446426326,21.69304919,125.98,125.96,11.8288934]
[1743446426531,7.9396,125.96,125.95,84.48321069]
[1743446426732,29.63264919,125.96,125.95,84.48321069]
[1743446427232,7.9402,125.95,125.94,84.54035]
[1743446427839,0.05387622,125.97,125.94,114.34035]
[1743446428233,7.9401,125.96,125.94,114.34035]
[1743446428935,7.99317622,125.97,125.94,114.34035]
[1743446429237,0.05387622,125.97,125.94,114.34035]
[1743446429642,7.9401,125.96,125.94,29.85713931]
[1743446429837,0.05387622,125.97,125.94,29.85713931]
[1743446430040,7.939,125.98,125.94,33.95263931]
[1743446430242,21.69304919,126.02,125.94,33.8955]
[1743446431039,7.9393,125.97,125.94,33.8955]
[1743446431439,7.9393,125.97,125.95,6.86189862]
[1743446431638,21.69304919,126.02,125.95,6.86189862]
[1743446432043,21.69304919,126.02,125.97,0.06050727]
[1743446432246,7.9384,125.98,125.97,29.82050727]
[1743446433347,29.63144919,125.98,125.97,0.06050727]
[1743446433548,19.33265467,125.98,125.97,0.06050727]
[1743446434550,7.9384,125.98,125.97,0.06050727]
[1743446434748,305.8697,126.04,125.97,29.90050727]
[1743446434948,21.69304919,126.02,125.97,29.90050727]
[1743446435846,7.9384,125.98,125.97,29.90050727]
[1743446438653,21.69304919,126.02,125.97,29.90050727]
[1743446439056,7.9384,125.98,125.97,29.90050727]
[1743446439359,21.69304919,125.98,125.94,84.48321069]
[1743446439558,7.9402,125.95,125.94,133.47607624]
[1743446441250,7.9402,125.95,125.94,6.49062477]
[1743446442747,0.05176768,125.96,125.94,6.49062477]
[1743446443457,0.05176768,125.96,125.93,84.54248388]
[1743446443853,7.99176768,125.96,125.93,84.54248388]
[1743446444053,0.05176768,125.96,125.93,84.54248388]
[1743446444452,7.9405,125.95,125.93,84.54248388]
[1743446444858,0.05176768,125.96,125.93,84.54248388]
[1743446445155,7.99186768,125.96,125.95,84.48321069]
[1743446446860,7.9402,125.95,125.94,127.82657062]
[1743446447159,29.63324919,125.95,125.94,127.82657062]
[1743446447454,29.63324919,125.95,125.94,213.04428437]
[1743446449054,7.9402,125.95,125.94,213.04428437]
[1743446449560,7.9402,125.95,125.93,29.85927319]
[1743446450952,0.05176768,125.96,125.93,29.85927319]
[1743446451759,0.05176768,125.96,125.94,6.11765174]
[1743446453757,0.05176768,125.96,125.94,21.14715174]
[1743446454559,0.05176768,125.96,125.95,7.9402]
[1743446454757,316.44979068,126.03,125.94,13.20635174]
[1743446454950,25.82694919,126.03,125.94,13.20635174]
[1743446455150,7.9387,125.98,125.94,21.14675174]
[1743446455763,7.9387,125.98,125.95,0.05255135]
[1743446456067,7.9387,125.98,125.96,29.78]
[1743446457061,7.9387,125.98,125.96,61.95915505]
[1743446457560,7.9381,125.99,125.96,61.95915505]
[1743446458162,7.9374,126.0,125.96,69.89865505]
[1743446458353,21.69304919,126.03,125.96,61.95915505]
[1743446458757,7.9361,126.02,125.98,7.99663315]
[1743446458954,21.69304919,126.03,125.99,29.74]
[1743446459353,7.9367,126.01,125.99,29.74]
[1743446459561,21.69304919,126.03,125.99,29.74]
[1743446459758,7.9362,126.02,125.99,29.74]
[1743446459958,21.69304919,126.03,125.99,29.74]
[1743446460158,21.69304919,126.05,125.99,29.74]
[1743446460363,21.69304919,126.07,126.0,3.4702]
[1743446460559,21.69304919,126.07,126.01,0.05458033]
[1743446460861,21.69304919,126.07,126.02,29.74]
[1743446461265,7.9358,126.03,126.01,0.05458033]
[1743446462265,21.69304919,126.05,126.01,0.05458033]
[1743446462266,7.935,126.04,126.01,0.05458033]
[1743446462468,21.69304919,126.05,126.01,0.05458033]
[1743446463362,7.9358,126.02,126.01,0.05458033]
[1743446463561,29.78,126.02,125.99,32.17915505]
[1743446463762,21.69304919,126.0,125.96,128.84181122]
[1743446463965,21.69304919,125.98,125.96,128.84181122]
[1743446464167,7.939,125.97,125.96,128.84181122]
[1743446464363,7.939,125.97,125.96,111.16931122]
[1743446464568,7.939,125.97,125.94,113.10681056]
[1743446464569,7.9402,125.95,125.94,113.10681056]
[1743446464771,59.45324919,125.95,125.94,113.10681056]
[1743446464971,37.7602,125.95,125.94,113.10681056]
[1743446465269,7.9402,125.95,125.94,113.10681056]
[1743446466367,51.61304919,125.97,125.93,0.05064228]
[1743446466874,0.05841422,125.96,125.93,0.05064228]
[1743446469470,7.9409,125.94,125.93,0.05064228]
[1743446470269,7.9405,125.95,125.93,0.05064228]
[1743446470867,0.05841422,125.96,125.93,0.05064228]
[1743446471373,7.9409,125.94,125.93,0.05064228]
[1743446473670,7.9409,125.94,125.93,4.228e-05]
[1743446475376,0.05841422,125.96,125.93,4.228e-05]
[1743446475865,7.9409,125.94,125.93,4.228e-05]
[1743446476175,0.05841422,125.96,125.93,4.228e-05]
[1743446476378,7.9403,125.95,125.93,4.228e-05]
[1743446477065,0.05841422,125.96,125.93,4.228e-05]
[1743446477574,7.9405,125.95,125.93,4.228e-05]
[1743446477775,0.05841422,125.96,125.93,4.228e-05]
[1743446477977,0.05841422,125.96,125.93,29.76004228]
[1743446478272,7.99831422,125.96,125.93,29.76004228]
[1743446478874,0.05841422,125.96,125.93,29.76004228]
[1743446479269,7.99851422,125.96,125.93,29.76004228]
[1743446479874,0.05841422,125.96,125.93,29.76004228]
[1743446480478,0.05841422,125.96,125.93,37.70124228]
[1743446480978,0.05841422,125.96,125.95,7.9402]
[1743446481277,0.05841422,125.96,125.93,29.76004228]
[1743446481479,0.05841422,125.96,125.94,7.9406]
[1743446481678,0.05841422,125.96,125.93,29.76004228]
[1743446482181,0.05841422,125.96,125.93,37.70144228]
[1743446484185,7.99811422,125.96,125.93,37.70144228]
[1743446485280,0.05841422,125.96,125.93,29.76004228]
[1743446485979,0.05841422,125.96,125.94,7.9406]
[1743446487087,21.69304919,126.02,125.93,29.76004228]
[1743446487287,7.9378,125.99,125.94,21.69304919]
[1743446487680,7.9378,125.99,125.96,7.9395]
[1743446487976,21.69304919,126.02,125.96,37.5795]
[1743446488180,7.9374,126.0,125.96,37.5795]
[1743446488375,0.0599611,126.0,125.98,0.05217228]
[1743446488580,620.34908032,126.07,125.99,29.64]
[1743446488581,21.69304919,126.06,125.99,29.64]
[1743446488781,21.69304919,126.06,125.99,33.5262]
[1743446488986,21.69304919,126.06,126.01,7.9363]
[1743446489479,7.9343,126.05,126.01,7.9363]
[1743446489679,21.69304919,126.06,126.0,7.9367]
[1743446489886,7.935,126.04,126.02,0.05782571]
[1743446490286,21.69304919,126.06,126.02,0.05782571]
[1743446490488,7.9343,126.05,126.02,0.05782571]
[1743446490684,21.69304919,126.06,126.02,0.05782571]
[1743446491084,29.62674919,126.06,126.02,0.05782571]
[1743446491283,7.9337,126.06,126.02,7.99332571]
[1743446491982,7.9337,126.06,126.02,0.05782571]
[1743446493288,7.934,126.05,126.02,0.05782571]
[1743446493583,21.69304919,126.08,126.02,29.61782571]
[1743446493892,11.00364111,126.12,126.06,21.69304919]
[1743446494090,11.00364111,126.12,126.07,29.72]
[1743446494392,11.00364111,126.12,126.08,0.05232196]
[1743446494785,7.9304,126.11,126.08,0.05232196]
[1743446495194,11.00364111,126.12,126.08,0.05232196]
[1743446495393,18.93344111,126.12,126.08,0.05232196]
[1743446495796,11.00364111,126.12,126.08,29.67737115]
[1743446495995,11.00364111,126.12,126.08,29.54137115]
[1743446496191,11.00364111,126.12,126.09,3.9463]
[1743446496393,11.00364111,126.12,126.1,29.68]
[1743446496598,7.9286,126.14,126.1,29.68]
[1743446497095,7.9286,126.14,126.11,0.05761318]
[1743446497395,15.8478,126.21,126.11,0.05761318]
[1743446497595,21.69304919,126.19,126.1,51.37304919]
[1743446497896,21.69304919,126.19,126.15,0.0520818]
[1743446498091,7.9268,126.17,126.15,0.0520818]
[1743446498496,21.69304919,126.2,126.15,0.0520818]
[1743446498795,7.9265,126.17,126.15,0.0520818]
[1743446498996,21.69304919,126.2,126.15,0.0520818]
[1743446499299,290.62284149,126.26,126.18,21.69304919]
[1743446499601,292.20687443,126.26,126.19,29.84]
[1743446499796,1.58403294,126.26,126.22,21.69304919]
[1743446500093,1.58403294,126.26,126.23,30.0]
[1743446500299,33.02259772,126.28,126.23,51.69304919]
[1743446500496,26.90949772,126.28,126.27,21.69304919]
[1743446500698,26.90949772,126.28,126.27,59.63314919]
[1743446500898,26.90949772,126.28,126.27,30.02]
[1743446502197,26.90949772,126.28,126.26,30.11083244]
[1743446502499,26.90949772,126.28,126.27,7.9201]
[1743446502801,88.0602606,126.29,126.27,42.37582863]
[1743446502997,88.0602606,126.29,126.27,34.45572863]
[1743446503198,30.08,126.34,126.27,34.45572863]
[1743446503491,30.08,126.34,126.21,682.97572863]
[1743446503699,30.08,126.34,126.22,30.06]
[1743446503892,34.45572863,126.33,126.26,0.05350024]
[1743446504090,34.45572863,126.33,126.22,30.06]
[1743446504291,34.45572863,126.33,126.28,0.05835633]
[1743446504491,7.9181,126.31,126.28,0.05835633]
[1743446504693,30.06,126.3,126.28,0.05835633]
[1743446505096,7.9189,126.29,126.28,0.05835633]
[1743446505304,30.06,126.3,126.28,0.05835633]
[1743446507202,3.1211,126.35,126.28,0.05835633]
[1743446507504,29.98,126.34,126.28,0.05835633]
[1743446508096,3.1211,126.35,126.28,0.05835633]
[1743446508299,3.8776,126.4,126.29,34.45572863]
[1743446508492,30.02,126.36,126.29,34.45572863]
[1743446508698,30.02,126.36,126.32,0.05315251]
[1743446510306,7.9155,126.35,126.32,0.05315251]
[1743446510499,30.02,126.36,126.32,0.05315251]
[1743446510902,7.9164,126.33,126.32,0.05315251]
[1743446511102,37.9164,126.33,126.32,0.05315251]
[1743446511303,30.0,126.33,126.32,0.05315251]
[1743446513701,37.9164,126.33,126.32,0.05315251]
[1743446514803,30.0,126.33,126.32,0.05315251]
[1743446515407,37.9164,126.33,126.32,0.05315251]
[1743446516311,7.9184,126.3,126.25,3.7974]
[1743446516502,29.88,126.3,126.27,7.92]
[1743446516906,29.88,126.32,126.25,38.25312863]
[1743446517106,29.88,126.32,126.25,68.13312863]
[1743446517300,29.88,126.32,126.27,0.05288444]